Workbook

Sheet Opening Document
B2: UPON OPENING DOCUMENT…
B27: IF THE RED BANNER OCCURS….
B39: 1. DOWNLOAD DOCUMENT AND SAVE TO DESKTOP
B40: 2. RIGHT CLICK, PROPERTIES
B53: 3. CHECK OFF UNBLOCK, CLICK APPLY, CLICK OK
B54: 4. REOPEN EXCEL WORKBOOK
B55: 5. IF NEEDED, ENABLE EDITING, ENABLE CONTENT

Sheet Budget Summary
A2: Attachment B - Budget Worksheet
A19: FFY 2025 Underserved Communities Traffic Safety Grant Program
A21: Cost Categories | C21: Cash Expenditures
A24: Personnel Costs | C24: ='Budget Detail'!E14 -> 0
A26: Fringe Benefit Costs | C26: ='Budget Detail'!E24 -> 0
A28: Indirect Costs | C28: ='Budget Detail'!E34 -> 0
A30: Consultants / Contractors Costs | C30: ='Budget Detail'!E44 -> 0
A32: Equipment Costs | C32: ='Budget Detail'!E54 -> 0
A34: Travel Costs | C34: ='Budget Detail'!E64 -> 0
A36: Supplies Costs | C36: ='Budget Detail'!E74 -> 0
A38: Other Costs | C38: ='Budget Detail'!E84 -> 0
A40: Total Costs | C40: ='Budget Detail'!E86 -> 0
A43: Name of Applicant Organization

Sheet Budget Detail
A1: Executive Office of Public Safety and Security
A2: Office of Grants and Research
A3: FFY 2025 Underserved Communities Traffic Safety Grant Program
A4: =CONCATENATE("Attachment B - ", 'Budget Summary'!B43) -> Attachment B -
A7: PERSONNEL - Full or part-time regular salaried employees working on the grant. At a minimum, reporting will need to detail employee name, amount of time projected to be spent working on the grant, and the pay rate. Provide a brief description to show how the calculation was reached. Overtime is not an allowable cost under this grant program.
A9: Employee Name | B9: Pay Rate | C9: Quantity | D9: Description | E9: Cash Expenditures
A10: Example: Sue Smith | B10: 23.4875 | C10: 300 | D10: Employee is projected to work a total of 300 hours during the grant at $23.4875/hr. | E10: =IF(B10="","",ROUND(ROUND(B10,4)*ROUND(C10,4),2)) -> 7046.25
A11: Example: Tracey Thomas | B11: 1730.77 | C11: 6 | D11: Please describe duties of Employee here. | E11: =IF(B11="","",ROUND(ROUND(B11,4)*ROUND(C11,4),2)) -> 10384.62
E12: =IF(B12="","",ROUND(ROUND(B12,4)*ROUND(C12,4),2)) -> 
A14: Subtotal: | E14: =SUM(OFFSET(Personnel,5,4):OFFSET(Fringe,-4,4)) -> 0
A17: FRINGE AND PAYROLL TAX - Eligible costs include the employer share of the following: life insurance, health insurance, social security costs, pension costs, unemployment insurance costs, workers compensation insurance, payroll taxes, FMLA. Cost amounts for direct fringe benefits can be either actual costs or rates per employee calculated by the fiscal or human resource unit in your organization (rate computations must be included). A copy of the approved rate agreement MUST be included with the application response.
A19: Employee Name | B19: Wages Applied to Fringe | C19: Contract Fringe Rate | D19: Description | E19: Cash Expenditures
A20: Example: Sue Smith | B20: 7046.25 | C20: 0.21 | D20: Per the fringe rate agreement, find the applicable cost categories to apply fringe to. In this example, the applicable cost category is "Personnel." Take Sue Smith's total wages reported on this worksheet under the "Personnel" section and multiply by the federally approved fringe rate or the fringe rate that was proposed and approved by OGR in the application process. ($7,046.25 * 21%). Match expenditures should be in relation to the match in the applicable category. | E20: =IF(B20="","",ROUND(ROUND(B20,4)*ROUND(C20,6),2)) -> 1479.71
A21: Example: Tracey Thomas | B21: 10384.62 | C21: 0.1 | D21: Per the fringe rate agreement, find the applicable cost categories to apply fringe to. In this example, the applicable cost category is "Personnel." Take Tracey Thomas' total wages reported on this worksheet under the "Personnel" section and multiply by the breakout of what rates are being charged per eligible cost. (7.5% - health insurance, 2% - life insurance, .5% - workers compensation). | E21: =IF(B21="","",ROUND(ROUND(B21,4)*ROUND(C21,6),2)) -> 1038.46
E22: =IF(B22="","",ROUND(ROUND(B22,4)*ROUND(C22,6),2)) -> 
E23: =IF(B23="","",ROUND(ROUND(B23,4)*ROUND(C23,8),2)) -> 
A24: Subtotal: | E24: =SUM(OFFSET(Fringe,5,4):OFFSET(Indirect,-4,4)) -> 0
A27: INDIRECT COSTS - Applicants that want to charge indirect costs through the use of an indirect cost rate may use a federally approved indirect cost rate agreement. A copy of the currently signed agreement MUST be submitted with the application. Applicants that do not currently have a negotiated (including provisional) indirect cost rate may elect to charge a de minimis rate of 10% of modified total direct costs. If the applicant’s accounting system permits, indirect costs may instead be allocated in the budget, including the category “other” if the costs being identified do not fit into one of the direct cost categories. For more information, see Title 2 CFR Part 200.
A29: Activity | B29: Expenses Applied to Indirect Rate | C29: Contract Indirect Rate | D29: Description | E29: Cash Expenditures
A30: Example: Sue Smith | B30: 8525.96 | C30: 0.18 | D30: The federally approved rate of "18%" times allowable expenses per contract. If allowable expenses are all categories, take the sum of all categories and multiply by the federally approved rate. If allowable expenses are only Personnel and Fringe like in this example, take the approved rate and multiply by the sum of Personnel and Fringe total costs associated with Sue Smith. (18% * (7046.25 + 1479.71)). | E30: =IF(B30="","",ROUND(ROUND(B30,4)*ROUND(C30,6),2)) -> 1534.67
A31: Example: Tracey Thomas | B31: 11423.08 | C31: 0.18 | D31: The federally approved rate of "18%" times allowable expenses per contract. If allowable expenses are all categories, take the sum of all categories and multiply by the federally approved rate. If allowable expenses are only Personnel and Fringe like in this example, take the approved rate and multiply by the sum of Personnel and Fringe total costs associated with Tracey Thomas. (18% * (10,384.62 + 1,038.46)). | E31: =IF(B31="","",ROUND(ROUND(B31,4)*ROUND(C31,6),2)) -> 2056.15
E32: =IF(B32="","",ROUND(ROUND(B32,4)*ROUND(C32,6),2)) -> 
E33: =IF(B33="","",ROUND(ROUND(B33,4)*ROUND(C33,8),2)) -> 
A34: Subtotal: | E34: =SUM(OFFSET(Indirect,5,4):OFFSET(Contractors,-4,4)) -> 0
A37: CONTRACTORS/CONSULTANTS - List each subcontractor and/or consultant along with their rate. The maximum rate for consultants is $650 for an eight-hour day or $81.25 per hour (excluding travel and subsistence costs). Any request for compensation over $650 per day hour day or $81.25 per hour requires prior written approval by OGR. This rate is the exception not the rule.
A39: Contractors/Consultants Name | B39: Pay Rate | C39: Quantity | D39: Description | E39: Cash Expenditures
A40: Example: JJ Counseling | B40: 200 | C40: 24 | D40: Counseling of domestic violence survivors; $200 per day x 24 days. Submitting reimbursement for $2,800. | E40: =IF(B40="","",ROUND(ROUND(B40,4)*ROUND(C40,4),2)) -> 4800
A41: Example: JJ Contracting | B41: 45 | C41: 210 | D41: Please provide the names of each Contractor and Consultant as well as duties/obligations that will be performed here. | E41: =IF(B41="","",ROUND(ROUND(B41,4)*ROUND(C41,4),2)) -> 9450
E42: =IF(B42="","",ROUND(ROUND(B42,4)*ROUND(C42,4),2)) -> 
A44: Subtotal: | E44: =SUM(OFFSET(Contractors,5,4):OFFSET(Equipment,-4,4)) -> 0
A47: EQUIPMENT - List the purchases of tangible non-expendable personal property having a useful life of more than one year. Equipment must be directly related to the program implementation. Examples of equipment that will NOT be approved under this grant program include, but are not limited to: motor vehicles, radar detectors, lidar, security cameras, speed radar signs or trailers, portable or vehicle radios, and variable message boards. Separately purchased warranty/service plan expenses are not an allowable cost under this grant program.
A49: Equipment | B49: Cost | C49: Quantity | D49: Description | E49: Cash Expenditures
A50: Example: AGF Allowed Item | B50: 1200 | C50: 1 | D50: Please describe purpose of Equipment here. | E50: =IF(B50="","",ROUND(ROUND(B50,4)*ROUND(C50,4),2)) -> 1200
A51: Example: Computer Keyboard | B51: 50 | C51: 3 | D51: Replacement keyboard, IBM part #872021. (3) keyboards at $50/each | E51: =IF(B51="","",ROUND(ROUND(B51,4)*ROUND(C51,4),2)) -> 150
A54: Subtotal: | E54: =SUM(OFFSET(Equipment,5,4):OFFSET(Travel,-4,4)) -> 0
A57: TRAVEL - This must be travel directly related to the purpose of the grant. In-state travel costs associated with the grant shall include mileage rates not in excess of $0.62 per mile, as well as the actual costs of tolls and parking. No grant funds may be spent for out of state conference fees, out of state travel or out of state lodging without prior written approval from OGR.
A59: Employee Name | B59: Rate | C59: Quantity | D59: Description | E59: Cash Expenditures
A60: Example: Sue Smith | B60: 250 | C60: 1 | D60: Gas reimbursement related to grant. | E60: =IF(B60="","",ROUND(ROUND(B60,4)*ROUND(C60,4),2)) -> 250
A61: Example: Tracey Thomas | B61: 0.62 | C61: 500 | D61: Travel related to grant; $0.62/mile x 500 miles | E61: =IF(B61="","",ROUND(ROUND(B61,4)*ROUND(C61,4),2)) -> 310
E62: =IF(B62="","",ROUND(ROUND(B62,4)*ROUND(C62,4),2)) -> 
A64: Subtotal: | E64: =SUM(OFFSET(Travel,5,4):OFFSET(Supplies,-4,4)) -> 0
A67: SUPPLIES - List the purchases of supplies required for program (pens, pencils, postage, training materials, copying paper, and other expendable items such as books, ink, etc.).
A69: Supplies/Company | B69: Cost | C69: Quantity | D69: Description | E69: Cash Expenditures
A70: Example: Copy Paper | B70: 50 | C70: 4 | D70: Please describe purpose of Supplies here. | E70: =IF(B70="","",ROUND(ROUND(B70,4)*ROUND(C70,4),2)) -> 200
A71: Example: ABC Office Supply | B71: 75 | C71: 1 | D71: 1 lot of office supplies (pens, staples, paperclips), $75/lot | E71: =IF(B71="","",ROUND(ROUND(B71,4)*ROUND(C71,4),2)) -> 75
A74: Subtotal: | E74: =SUM(OFFSET(Supplies,5,4):OFFSET(Other,-4,4)) -> 0
A77: OTHER - List the purchases for other expenses not applicable in the aforementioned that were incurred due to this program implementation (e.g., telephone costs, training material costs).
A79: Item/Company | B79: Cost | C79: Quantity | D79: Description | E79: Cash Expenditures
A80: Example: Telephone | B80: 65 | C80: 6 | D80: Please describe purpose of item/activity here. | E80: =IF(B80="","",ROUND(ROUND(B80,4)*ROUND(C80,4),2)) -> 390
A81: Example: Heat | B81: 6000 | C81: 0.25 | D81: Projected total bill for office during grant period is $6,000.00; this program is 1/4 of office space | E81: =IF(B81="","",ROUND(ROUND(B81,4)*ROUND(C81,4),2)) -> 1500
A84: Subtotal: | E84: =SUM(OFFSET(Other,5,4):OFFSET(GrandTotal,-3,4)) -> 0
A86: Grand Total: | E86: =ROUND(SUM(E14+E24+E34+E44+E64+E54+E74+E84),2) -> 0
